bitfinex/quotes_SOLUSD_20251207
["timestamp","ask_amount","ask_price","bid_price","bid_amount"]
[1765137213708,0.66,135.86,135.84,9.50994492]
[1765137214606,0.66,135.86,135.84,8.80994492]
[1765137214801,0.66,135.86,135.83,8.80994492]
[1765137215203,7.36105999,135.85,135.83,8.80994492]
[1765137215707,8.02069474,135.86,135.83,9.50994492]
[1765137216100,8.02069474,135.86,135.83,11.80174145]
[1765137216905,18.39769253,135.89,135.84,2.99179653]
[1765137217113,25.75658575,135.89,135.85,2.29179653]
[1765137217413,0.66,135.88,135.85,2.99179653]
[1765137217981,8.01889322,135.89,135.86,11.80174145]
[1765137219085,7.35889322,135.89,135.87,0.7]
[1765137219722,0.66,135.88,135.84,2.29179653]
[1765137219912,0.66,135.88,135.85,8.80994492]
[1765137221199,25.75991756,135.87,135.81,7.36288757]
[1765137221405,25.75991756,135.87,135.82,11.80174145]
[1765137221616,0.66,135.86,135.82,11.80174145]
[1765137222318,7.36105999,135.85,135.83,0.7]
[1765137225995,8.02069516,135.86,135.83,2.99179653]
[1765137226200,7.35965088,135.88,135.85,2.29179653]
[1765137226621,7.35965088,135.88,135.86,0.7]
[1765137226821,7.35889322,135.89,135.86,0.7]
[1765137227119,8.01889322,135.89,135.85,2.29179653]
[1765137227425,0.66,135.88,135.85,2.99179653]
[1765137230747,0.66,135.88,135.86,8.80994492]
[1765137237636,8.01943555,135.88,135.86,8.80994492]
[1765137238950,0.68,135.87,135.85,8.80994492]
[1765137239339,8.03943555,135.88,135.85,9.51994492]
[1765137240449,8.03943555,135.88,135.85,13.10542021]
[1765137241957,8.03889322,135.89,135.86,4.29547529]
[1765137253170,0.68,135.88,135.86,4.29547529]
[1765137261580,0.67,135.88,135.86,4.29547529]
[1765137268288,8.02943753,135.88,135.85,20.46647821]
[1765137268486,8.02943753,135.88,135.85,19.75647821]
[1765137268784,8.02943753,135.88,135.86,0.71]
[1765137269790,0.67,135.87,135.85,19.75647821]
[1765137270090,8.02889322,135.89,135.85,20.46647821]
[1765137270271,0.67,135.88,135.85,20.46647821]
[1765137270875,0.67,135.88,135.86,0.71]
[1765137272291,8.02970867,135.88,135.85,8.80994492]
[1765137272788,0.67,135.87,135.85,8.80994492]
[1765137272990,7.35970867,135.88,135.86,0.71]
[1765137273596,8.02970867,135.88,135.86,0.71]
[1765137274094,8.02970867,135.88,135.85,12.39542021]
[1765137274297,8.02970867,135.88,135.85,13.10542021]
[1765137274973,25.75690309,135.89,135.85,13.10542021]
[1765137275288,0.67,135.87,135.85,8.80994492]
[1765137278175,8.02999296,135.87,135.85,8.80994492]
[1765137280797,0.67,135.86,135.8,27.75621775]
[1765137281096,0.67,135.86,135.83,8.80994492]
[1765137281596,0.67,135.86,135.83,9.51994492]
[1765137281801,0.67,135.86,135.83,8.80994492]
[1765137282099,0.67,135.86,135.82,8.80994492]
[1765137282884,7.36105999,135.85,135.82,8.80994492]
[1765137283309,0.67,135.84,135.82,8.80994492]
[1765137285213,0.67,135.84,135.82,12.39542021]
[1765137286811,8.03167078,135.84,135.82,12.39542021]
[1765137287112,8.03167078,135.84,135.82,8.80994492]
[1765137287312,0.67,135.84,135.82,12.39542021]
[1765137290193,0.67,135.84,135.82,8.80994492]
[1765137292794,0.67,135.84,135.82,11.10582939]
[1765137297420,0.67,135.84,135.82,8.80994492]
[1765137300726,20.69367368,135.89,135.84,8.80994492]
[1765137300922,8.78,135.88,135.84,11.10582939]
[1765137301117,0.68,135.89,135.86,8.80994492]
[1765137301315,16.13835172,135.9,135.86,11.10582939]
[1765137301510,0.68,135.89,135.86,9.48994492]
[1765137301737,0.68,135.89,135.86,8.80994492]
[1765137302607,7.35943479,135.88,135.86,8.80994492]
[1765137302908,7.35943479,135.88,135.85,8.80994492]
[1765137303109,0.68,135.87,135.85,8.80994492]
[1765137304533,8.03889322,135.89,135.85,8.80994492]
[1765137304737,8.03889322,135.89,135.85,9.48994492]
[1765137305030,0.68,135.88,135.85,9.48994492]
[1765137305407,0.68,135.88,135.85,11.78582939]
[1765137305616,0.68,135.88,135.84,16.308864]
[1765137305937,0.68,135.88,135.84,16.988864]
[1765137306523,7.35997644,135.87,135.84,16.988864]
[1765137307031,0.68,135.88,135.84,16.988864]
[1765137307032,8.03956498,135.88,135.85,9.48994492]
[1765137307232,0.68,135.88,135.85,11.78582939]
[1765137307411,0.68,135.87,135.85,11.10582939]
[1765137307736,0.68,135.87,135.85,11.78582939]
[1765137307932,0.68,135.88,135.85,11.78582939]
[1765137308235,0.68,135.88,135.85,19.14681019]
[1765137309735,0.68,135.88,135.85,16.85092572]
[1765137309936,0.68,135.88,135.85,19.14681019]
[1765137315244,8.03969698,135.88,135.85,9.48994492]
[1765137316445,7.35889322,135.89,135.85,8.80994492]
[1765137316656,0.68,135.87,135.85,8.80994492]
[1765137321754,0.68,135.87,135.85,9.51994492]
[1765137321954,0.68,135.87,135.85,8.80994492]
[1765137325657,8.03998105,135.87,135.85,8.80994492]
[1765137326558,8.03998105,135.87,135.85,9.51994492]
[1765137328258,8.03998105,135.87,135.85,8.80994492]
[1765137330339,8.03998105,135.87,135.85,9.51994492]
[1765137331055,8.03998105,135.87,135.85,8.80994492]
[1765137331646,8.03998105,135.87,135.85,9.51994492]
[1765137331945,8.03998105,135.87,135.85,8.80994492]
[1765137332759,0.71,135.86,135.84,16.308864]
[1765137334854,7.36001361,135.87,135.84,16.308864]
[1765137335060,8.07001361,135.87,135.84,17.018864]
[1765137335466,8.07001361,135.87,135.84,18.60474847]
[1765137335641,8.07001361,135.87,135.84,19.31474847]
[1765137336660,0.71,135.86,135.84,19.31474847]
[1765137339047,8.07003585,135.87,135.84,19.31474847]
[1765137339549,8.07003585,135.87,135.85,0.71]
[1765137340069,7.36003585,135.87,135.84,16.308864]
[1765137340364,8.07003585,135.87,135.85,0.71]
[1765137341168,0.71,135.86,135.84,19.31474847]
[1765137342670,0.71,135.86,135.84,17.018864]
[1765137343647,8.06966994,135.88,135.85,9.51994492]
[1765137343970,8.06966994,135.88,135.85,11.81582939]
[1765137344756,7.35966994,135.88,135.85,11.81582939]
[1765137344957,16.1685482,135.9,135.87,8.80994492]
[1765137345468,15.4585482,135.9,135.87,9.51994492]
[1765137345773,0.71,135.89,135.87,8.80994492]
[1765137349947,15.4585482,135.9,135.88,0.71]
[1765137350252,8.1,135.9,135.88,0.71]
[1765137350987,8.1,135.9,135.88,3.00588447]
[1765137351192,8.06797965,135.91,135.88,3.00588447]
[1765137351779,0.71,135.9,135.88,3.00588447]
[1765137352283,0.71,135.9,135.88,0.71]
[1765137352779,8.06797965,135.91,135.88,4.29412784]
[1765137354083,0.71,135.9,135.88,4.29412784]
[1765137354875,0.71,135.9,135.88,0.71]
[1765137357076,0.71,135.9,135.87,19.75404318]
[1765137357284,8.0684066,135.9,135.87,20.46404318]
[1765137357487,8.0684066,135.9,135.87,16.87991534]
[1765137359382,8.0684066,135.9,135.87,20.46404318]
[1765137362384,8.0684066,135.9,135.87,16.87991534]
[1765137362681,0.68,135.89,135.87,8.80994492]
[1765137363265,0.68,135.89,135.87,9.51994492]
[1765137363788,8.1,135.88,135.84,16.308864]
[1765137364274,0.68,135.87,135.84,16.308864]
[1765137364476,8.04047242,135.87,135.84,16.308864]
[1765137364876,0.68,135.86,135.84,16.308864]
[1765137372588,0.68,135.86,135.84,17.018864]
[1765137373212,0.68,135.86,135.84,16.308864]
[1765137374097,8.04053627,135.86,135.84,8.80994492]
[1765137375308,7.35997644,135.87,135.84,8.80994492]
[1765137375496,0.68,135.85,135.82,8.80994492]
[1765137377009,8.04128437,135.85,135.82,8.80994492]
[1765137377187,0.68,135.84,135.82,8.80994492]
[1765137379010,8.04167587,135.84,135.82,8.80994492]
[1765137379391,0.68,135.83,135.82,8.80994492]
[1765137380200,8.04167587,135.84,135.82,8.80994492]
[1765137384495,7.36167587,135.84,135.81,0.71]
[1765137384708,8.06167587,135.84,135.82,8.80994492]
[1765137386600,8.06167587,135.84,135.82,9.47994492]
[1765137389696,22.10677572,135.86,135.83,4.25412784]
[1765137389917,0.7,135.88,135.84,12.39407276]
[1765137390230,8.8,135.88,135.85,3.58412784]
[1765137390403,8.8,135.88,135.85,0.67]
[1765137390725,8.06011045,135.87,135.85,0.67]
[1765137390920,7.36011045,135.87,135.85,4.25412784]
[1765137391122,8.06011045,135.87,135.85,0.67]
[1765137391505,8.06011045,135.87,135.84,12.39407276]
[1765137391827,8.06011045,135.87,135.85,0.67]
[1765137392223,0.7,135.9,135.86,12.39407276]
[1765137392406,8.1,135.9,135.88,3.58412784]
[1765137392728,18.39502574,135.91,135.88,12.39407276]
[1765137392899,8.05854367,135.9,135.88,8.80994492]
[1765137394307,8.05854367,135.9,135.88,9.47994492]
[1765137395621,0.7,135.89,135.86,18.39773874]
[1765137395927,0.7,135.89,135.86,8.80994492]
[1765137396228,0.7,135.89,135.85,9.47994492]
[1765137396608,8.1,135.88,135.85,9.47994492]
[1765137397009,0.7,135.87,135.85,9.47994492]
[1765137399334,8.06000514,135.87,135.85,9.47994492]
[1765137400213,8.06000514,135.87,135.85,8.80994492]
[1765137400413,0.7,135.86,135.85,8.80994492]
[1765137401222,0.7,135.86,135.82,9.35820788]
[1765137401223,4.28412784,135.86,135.82,9.35820788]
[1765137401403,4.28412784,135.86,135.8,0.06481841]
[1765137401404,3.58412784,135.83,135.8,0.06481841]
[1765137401612,16.308864,135.8,135.79,1e-08]
[1765137401803,3.58412784,135.8,135.77,0.2]
[1765137402008,8.8,135.79,135.77,0.2]
[1765137402424,0.7,135.78,135.77,0.2]
[1765137402618,8.06485491,135.78,135.77,0.2]
[1765137402818,11.01438114,135.78,135.77,0.2]
[1765137403226,14.59850898,135.78,135.77,0.2]
[1765137404736,11.01438114,135.78,135.77,0.2]
[1765137404930,8.1,135.79,135.77,0.87]
[1765137405430,11.04887389,135.79,135.77,0.87]
[1765137405626,11.04887389,135.79,135.77,0.2]
[1765137405834,11.74887389,135.79,135.77,0.2]
[1765137406035,4.28412784,135.78,135.77,0.2]
[1765137406831,11.64898275,135.78,135.77,0.2]
[1765137410539,11.64898275,135.78,135.76,0.2]
[1765137410742,4.29412784,135.77,135.75,0.2]
[1765137410922,11.68412784,135.76,135.75,0.2]
[1765137411122,12.39412784,135.76,135.75,0.2]
[1765137411329,22.71024658,135.76,135.75,0.2]
[1765137412840,22.71024658,135.76,135.75,1e-08]
[1765137414837,21.42652617,135.76,135.75,1e-08]
[1765137415944,8.80994492,135.75,135.72,0.2]
[1765137416143,16.308864,135.73,135.72,0.2]
[1765137416335,8.81,135.74,135.72,0.2]
[1765137416545,3.66039645,135.73,135.72,0.2]
[1765137417735,11.76039645,135.73,135.72,0.2]
[1765137418552,19.12796441,135.73,135.72,0.2]
[1765137419247,21.42837184,135.73,135.72,0.2]
[1765137420632,18.41796441,135.73,135.72,0.2]
[1765137420934,18.41796441,135.73,135.72,0.88]
[1765137421638,18.41796441,135.73,135.72,0.2]
[1765137422242,7.36756796,135.73,135.72,0.88]
[1765137423548,15.46705864,135.74,135.72,0.88]
[1765137423743,15.46705864,135.74,135.73,0.68]
[1765137423945,15.46705864,135.74,135.72,3.18040743]
[1765137424640,15.46705864,135.74,135.73,0.68]
[1765137431852,15.46705864,135.74,135.72,0.2]
[1765137432049,15.46705864,135.74,135.72,0.88]
[1765137435450,33.88388943,135.75,135.72,0.88]
[1765137435651,34.60388943,135.75,135.72,0.88]
[1765137442759,15.4664825,135.75,135.73,2.95040743]
[1765137443362,15.4664825,135.75,135.73,0.65]
[1765137445656,15.4664825,135.75,135.73,2.95040743]
[1765137445874,15.4664825,135.75,135.73,0.65]
[1765137449982,8.1,135.75,135.73,2.95040743]
[1765137450470,8.1,135.75,135.74,0.65]
[1765137451654,8.1,135.75,135.73,2.30040743]
[1765137452169,8.1,135.75,135.74,0.65]
[1765137453271,8.1,135.75,135.73,2.95040743]
[1765137455189,8.1,135.75,135.73,0.65]
[1765137455373,120.95611948,135.76,135.73,0.65]
[1765137461266,8.1,135.76,135.74,8.80994492]
[1765137461465,15.46505267,135.78,135.75,2.95040743]
[1765137461864,15.46505267,135.78,135.76,0.65]
[1765137462274,16.15505267,135.78,135.76,0.65]
[1765137462661,8.1,135.78,135.76,0.65]
[1765137462875,8.1,135.78,135.76,2.95040743]
[1765137463082,8.1,135.78,135.77,8.80994492]
[1765137463285,15.46382615,135.8,135.77,9.45994492]
[1765137463467,16.15382615,135.8,135.77,11.76035235]
[1765137463668,16.15382615,135.8,135.78,0.65]
[1765137463988,8.1,135.8,135.78,0.65]
[1765137464488,8.1,135.8,135.78,2.95040743]
[1765137465685,8.1,135.8,135.78,0.65]
[1765137466569,8.05273756,135.82,135.79,8.80994492]
[1765137466774,16.15273756,135.82,135.79,8.80994492]
[1765137466985,0.69,135.81,135.79,9.45994492]
[1765137467866,15.46273756,135.82,135.79,9.45994492]
[1765137467867,16.15273756,135.82,135.79,9.45994492]
[1765137469791,0.69,135.81,135.79,9.45994492]
[1765137469987,8.1,135.8,135.76,18.60927143]
[1765137470286,8.1,135.8,135.76,19.25927143]
[1765137470485,0.69,135.79,135.76,16.958864]
[1765137470871,0.69,135.79,135.76,19.25927143]
[1765137471593,8.05451133,135.79,135.76,19.25927143]
[1765137472094,8.05451133,135.79,135.75,11.11035235]
[1765137472292,0.68,135.78,135.75,8.80994492]
[1765137473289,0.68,135.78,135.75,9.46994492]
[1765137474305,8.04507189,135.78,135.75,9.46994492]
[1765137476493,0.68,135.77,135.74,16.308864]
[1765137476697,0.68,135.77,135.74,16.968864]
[1765137477394,0.68,135.77,135.74,0.66]
[1765137477591,8.04554321,135.77,135.74,0.66]
[1765137478288,0.68,135.76,135.74,0.66]
[1765137479097,0.68,135.76,135.73,12.40100579]
[1765137479405,0.68,135.76,135.74,9.46994492]
[1765137480907,0.68,135.76,135.74,8.80994492]
[1765137481086,16.14554321,135.77,135.74,9.46994492]
[1765137482407,15.46554321,135.77,135.74,9.46994492]
[1765137482613,0.72,135.76,135.74,8.80994492]
[1765137482989,15.46554321,135.77,135.74,9.51994492]
[1765137483191,16.18554321,135.77,135.74,9.51994492]
[1765137485508,0.72,135.76,135.72,16.508864]
[1765137485716,4.31106087,135.76,135.72,0.2]
[1765137486209,0.72,135.75,135.72,0.2]
[1765137487297,7.36702519,135.74,135.72,0.2]
[1765137487803,8.08702519,135.74,135.72,0.2]
[1765137491597,16.18702519,135.74,135.72,0.2]
[1765137492117,0.72,135.73,135.72,0.2]
[1765137492315,8.08756796,135.73,135.72,0.2]
[1765137497537,11.67862883,135.73,135.72,0.2]
[1765137498038,14.62946059,135.73,135.72,0.2]
[1765137499320,11.03839972,135.73,135.72,0.2]
[1765137499510,16.18756796,135.73,135.72,0.2]
[1765137501135,15.46756796,135.73,135.72,0.2]
[1765137501437,16.18756796,135.73,135.72,0.2]
[1765137503850,15.46756796,135.73,135.72,0.2]
[1765137504522,16.18756796,135.73,135.72,0.2]
[1765137504723,15.46756796,135.73,135.72,0.2]
[1765137505149,7.36756796,135.73,135.72,0.2]
[1765137505454,7.36756796,135.73,135.72,0.89]
[1765137506049,7.36756796,135.73,135.72,0.2]
[1765137507527,7.36756796,135.73,135.72,0.89]
[1765137508450,7.36756796,135.73,135.72,0.2]
[1765137508651,7.36756796,135.73,135.72,0.89]
[1765137509758,7.36756796,135.73,135.72,0.2]
[1765137514167,8.08756796,135.73,135.72,0.2]
[1765137514469,16.18756796,135.73,135.72,0.2]
[1765137521880,15.46756796,135.73,135.72,0.2]
[1765137523078,16.18756796,135.73,135.72,0.2]
[1765137524972,15.46756796,135.73,135.72,0.2]
[1765137528700,8.1,135.73,135.72,9.69994492]
[1765137529072,7.36723047,135.74,135.72,9.69994492]
[1765137529273,7.36723047,135.74,135.73,0.69]
[1765137529891,7.36660978,135.75,135.73,0.69]
[1765137530972,7.36615531,135.76,135.73,0.69]
[1765137531196,8.03615531,135.76,135.73,0.69]
[1765137533397,7.36615531,135.76,135.73,0.69]
[1765137533599,8.03615531,135.76,135.73,0.69]
[1765137533995,7.36615531,135.76,135.73,0.69]
[1765137535701,8.03615531,135.76,135.73,0.69]
[1765137539100,0.69,135.75,135.73,0.69]
[1765137539613,7.36615531,135.76,135.73,0.69]
[1765137539797,8.05615531,135.76,135.73,0.69]
[1765137540781,16.15615531,135.76,135.73,0.69]
[1765137540979,8.05615531,135.76,135.73,0.69]
[1765137541204,16.15615531,135.76,135.73,0.69]
[1765137541511,8.05615531,135.76,135.73,0.69]
[1765137541711,16.15615531,135.76,135.73,0.69]
[1765137542003,8.1,135.76,135.74,8.80994492]
[1765137542406,8.1,135.76,135.74,9.50994492]
[1765137542602,7.3657531,135.77,135.75,0.7]
[1765137548209,8.0557531,135.77,135.75,0.7]
[1765137548587,8.0557531,135.77,135.74,8.80994492]
[1765137548790,8.0557531,135.77,135.74,9.50994492]
[1765137548991,8.0557531,135.77,135.75,0.7]
[1765137549488,8.0557531,135.77,135.74,8.80994492]
[1765137549690,8.0557531,135.77,135.74,9.50994492]
[1765137550412,8.0557531,135.77,135.75,0.7]
[1765137551416,7.3657531,135.77,135.75,0.7]
[1765137552091,8.0557531,135.77,135.75,0.7]
[1765137553415,7.3657531,135.77,135.75,0.7]
[1765137553817,8.79,135.76,135.73,8.80994492]
[1765137553998,11.08906681,135.76,135.72,9.00994492]
[1765137554194,0.69,135.75,135.72,9.00994492]
[1765137555919,7.36702519,135.74,135.72,9.00994492]
[1765137556520,8.05702519,135.74,135.72,9.00994492]
[1765137558817,7.36702519,135.74,135.72,9.00994492]
[1765137559020,0.69,135.73,135.72,9.00994492]
[1765137559718,0.69,135.73,135.72,0.2]
[1765137560521,8.05756796,135.73,135.72,0.2]
[1765137563104,10.35663477,135.73,135.72,0.2]
[1765137564020,8.05756796,135.73,135.72,0.2]
[1765137573024,7.36756796,135.73,135.72,0.2]
[1765137573407,8.05756796,135.73,135.72,0.2]
[1765137577531,7.36756796,135.73,135.72,0.2]
[1765137577734,8.05756796,135.73,135.72,0.2]
[1765137583541,122.56629595,135.74,135.72,0.92]
[1765137583742,123.25629595,135.74,135.72,0.2]
[1765137584240,123.25629595,135.74,135.72,0.92]
[1765137584637,120.95722914,135.74,135.72,0.2]
[1765137584939,7.36664148,135.75,135.73,0.72]
[1765137586120,8.05664148,135.75,135.72,9.72994492]
[1765137587724,18.45521826,135.76,135.73,0.72]
[1765137588551,16.15615145,135.76,135.73,0.72]
[1765137591750,15.46615145,135.76,135.73,3.01906681]
[1765137591944,15.46615145,135.76,135.73,0.72]
[1765137592142,15.46615145,135.76,135.74,0.67]
[1765137592456,16.13615145,135.76,135.74,0.67]
[1765137592755,15.46615145,135.76,135.74,0.67]
[1765137593148,7.36615145,135.76,135.74,0.67]
[1765137595648,120.26559404,135.77,135.74,0.67]
[1765137595851,120.93559404,135.77,135.74,2.96906681]
[1765137596052,120.93559404,135.77,135.74,0.67]
[1765137596257,120.93559404,135.77,135.75,0.67]
[1765137597149,120.93559404,135.77,135.74,9.47994492]
[1765137597537,120.26559404,135.77,135.74,9.47994492]
[1765137597756,120.93559404,135.77,135.75,0.67]
[1765137597955,120.26559404,135.77,135.75,0.67]
[1765137598157,120.93559404,135.77,135.75,0.67]
[1765137598374,120.26559404,135.77,135.75,0.67]
[1765137598577,0.67,135.79,135.76,8.80994492]
[1765137598758,8.77,135.79,135.76,8.80994492]
[1765137598957,8.77,135.79,135.77,0.67]
[1765137599276,0.67,135.79,135.77,0.67]
[1765137599476,8.77,135.79,135.77,0.67]
[1765137599679,15.46446065,135.79,135.77,0.67]
[1765137599863,8.1,135.79,135.77,4.26068372]
[1765137600177,7.36382209,135.8,135.77,4.26068372]
[1765137600383,8.03382209,135.8,135.78,0.67]
[1765137600554,7.36382209,135.8,135.78,0.67]
[1765137600961,8.03341238,135.81,135.78,0.67]
[1765137601291,8.1,135.81,135.79,8.80994492]
[1765137601659,16.13324658,135.81,135.79,8.80994492]
[1765137602178,21.9967154,135.83,135.79,8.80994492]
[1765137602179,7.36287972,135.82,135.8,0.67]
[1765137602358,15.46287972,135.82,135.8,0.67]
[1765137602557,8.0306628,135.86,135.81,28.70949264]
[1765137602756,8.0306628,135.86,135.83,8.80994492]
[1765137603171,15.56017762,135.87,135.84,0.71]
[1765137603381,15.56017762,135.87,135.85,8.80994492]
[1765137603382,0.1,135.87,135.85,8.80994492]
[1765137603561,8.3,135.91,135.9,8.80994492]
[1765137603757,7.3540299,135.98,135.92,25.11880892]
[1765137603962,0.72,136.0,135.93,8.80994492]
[1765137604266,0.72,136.01,135.97,12.40062864]
[1765137604470,0.72,136.01,135.95,3.59068372]
[1765137604662,0.72,136.01,135.97,8.80994492]
[1765137605058,7.35294117,136.0,135.97,8.80994492]
[1765137605262,0.72,135.99,135.96,3.59068372]
[1765137605482,7.35244337,136.01,135.97,4.18068372]
[1765137605983,0.1,136.02,136.01,8.80994492]
[1765137606190,0.1,136.02,136.01,12.40062864]
[1765137606379,0.1,136.02,136.01,12.99062864]
[1765137608086,0.1,136.02,136.01,36.65189319]
[1765137608384,0.1,136.05,136.04,25.11880892]
[1765137608687,0.1,136.05,136.04,28.70949264]
[1765137608876,0.1,136.05,136.04,29.29949264]
[1765137609078,0.1,136.09,136.08,8.80994492]
[1765137609284,0.1,136.09,136.08,12.40062864]
[1765137609520,0.1,136.09,136.08,20.71062864]
[1765137609689,0.1,136.09,136.08,20.52062864]
[1765137609900,0.1,136.09,136.08,12.40062864]
[1765137611169,0.1,136.09,136.07,3.59068372]
[1765137611488,0.82,136.09,136.07,8.80994492]
[1765137611670,0.82,136.09,136.05,8.12]
[1765137611868,0.82,136.09,136.05,20.52062864]
[1765137613322,8.16814457,136.09,136.05,20.52062864]
[1765137614094,0.72,136.08,136.05,20.52062864]
[1765137614406,0.72,136.08,136.05,8.12]
[1765137614613,0.72,136.08,136.06,8.80994492]
[1765137616883,8.06882447,136.08,136.06,8.80994492]
[1765137617485,7.34882447,136.08,136.06,8.80994492]
[1765137617895,8.06882447,136.08,136.06,8.80994492]
[1765137620792,0.7,136.07,136.04,12.40062864]
[1765137620993,8.04882447,136.08,136.04,12.40062864]
[1765137622190,0.7,136.07,136.04,8.80994492]
[1765137622389,3.59068372,136.06,136.01,8.80994492]
[1765137622807,0.7,136.05,136.01,8.80994492]
[1765137623016,4.29068372,136.05,136.0,8.80994492]
[1765137623397,3.59068372,136.03,135.99,8.80994492]
[1765137623906,8.05233945,136.02,135.99,8.80994492]
[1765137624436,0.7,136.01,135.99,8.80994492]
[1765137626197,8.05270126,136.01,135.97,16.308864]
[1765137626502,8.05270126,136.01,135.96,8.80994492]
[1765137626503,3.59068372,136.0,135.96,8.80994492]
[1765137626830,4.29068372,136.0,135.96,8.80994492]
[1765137627000,4.29068372,136.0,135.94,19.06642913]
[1765137627001,0.7,135.99,135.95,8.80994492]
[1765137627407,0.7,135.99,135.95,16.16547275]
[1765137627929,10.94470637,135.98,135.93,8.80994492]
[1765137628131,7.35402265,135.98,135.93,19.75696824]
[1765137628331,0.7,135.97,135.93,36.06583224]
[1765137628746,0.7,136.0,135.96,3.59068372]
[1765137628922,0.7,136.03,135.99,12.40062864]
[1765137629127,8.05146018,136.03,135.99,12.40062864]
[1765137629326,0.7,136.05,136.01,8.80994492]
[1765137629536,8.05039668,136.05,136.01,12.40062864]
[1765137629744,0.7,136.04,136.01,12.40062864]
[1765137629923,0.7,136.04,136.01,19.75301589]
[1765137630128,7.35039668,136.05,136.01,19.75301589]
[1765137630339,0.7,136.05,136.01,19.75301589]
[1765137631945,8.05033186,136.05,136.01,19.75301589]
[1765137632244,3.59068372,136.04,135.99,16.308864]
[1765137632433,3.59068372,136.02,135.98,8.80994492]
[1765137632644,3.59068372,136.01,135.97,24.428864]
[1765137632827,3.59068372,136.01,135.97,8.12]
[1765137633014,0.7,136.0,135.98,8.80994492]
[1765137633325,4.29068372,136.0,135.96,8.80994492]
[1765137633727,0.7,135.99,135.96,8.80994492]
[1765137634724,8.05360254,135.99,135.95,18.30824219]
[1765137635516,8.05360254,135.99,135.97,8.80994492]
[1765137636421,7.35360254,135.99,135.97,8.80994492]
[1765137636620,0.7,135.98,135.95,18.30824219]
[1765137637025,7.35360254,135.99,135.95,8.99994492]
[1765137637341,8.82,136.02,135.96,17.04302051]
[1765137637520,9.49829727,136.04,135.99,8.80994492]
[1765137637720,0.7,136.04,135.99,18.30824219]
[1765137638046,0.7,136.03,135.99,18.49824219]
[1765137638424,9.49829727,136.02,135.99,8.80994492]
[1765137638931,0.7,136.01,135.97,16.308864]
[1765137639116,9.49829727,136.0,135.96,8.80994492]
[1765137639316,0.7,135.99,135.96,8.80994492]
[1765137640348,8.05375223,135.99,135.96,8.80994492]
[1765137641329,0.7,135.98,135.96,8.80994492]
[1765137642519,0.7,135.98,135.94,9.49829727]
[1765137642520,8.05404112,135.98,135.94,9.49829727]
[1765137642730,9.49829727,135.97,135.93,8.80994492]
[1765137643029,10.19829727,135.97,135.93,8.80994492]
[1765137643354,0.7,135.96,135.93,8.80994492]
[1765137644330,8.05520642,135.96,135.93,8.80994492]
[1765137644743,0.7,135.95,135.93,8.80994492]
[1765137645443,7.35472116,135.97,135.93,25.85483419]
[1765137645645,0.7,135.98,135.96,8.80994492]
[1765137646432,8.05311122,136.0,135.96,8.80994492]
[1765137646634,0.7,135.99,135.96,9.49829727]
[1765137647259,8.05311122,136.0,135.97,9.49829727]
[1765137647454,8.05311122,136.0,135.96,18.49824219]
[1765137647761,112.15246679,136.01,135.98,8.80994492]
[1765137648051,112.85246679,136.01,135.98,8.80994492]
[1765137648243,112.15246679,136.01,135.98,8.80994492]
[1765137648437,0.7,136.0,135.98,8.80994492]
[1765137648834,0.7,136.03,136.0,8.80994492]
[1765137649030,9.49829727,136.04,136.0,8.80994492]
[1765137649247,10.19829727,136.02,135.97,8.80994492]
[1765137649758,0.7,136.01,135.97,8.80994492]
[1765137650052,17.5511581,136.01,135.97,8.80994492]
[1765137650244,9.49829727,136.0,135.97,8.80994492]
[1765137650447,10.19829727,136.0,135.97,8.80994492]
[1765137650661,0.69,135.99,135.97,8.80994492]
[1765137650958,10.18829727,135.99,135.97,8.80994492]
[1765137651155,0.69,135.99,135.97,8.80994492]
[1765137651362,0.69,135.98,135.97,8.80994492]
[1765137655659,8.04343056,136.0,135.97,8.80994492]
[1765137656036,0.69,135.99,135.97,8.80994492]